bitfinex-derivatives/quotes_BTCF0:USTF0_20260106
["timestamp","ask_amount","ask_price","bid_price","bid_amount"]
[1767676684115,0.09852117,93752.0,93741.0,0.4]
[1767676684424,0.09852117,93752.0,93741.0,0.49068]
[1767676687325,0.09852117,93752.0,93736.0,0.010669]
[1767676687326,0.1114589,93748.0,93733.0,0.01067]
[1767676687630,0.1114589,93748.0,93734.0,0.09068]
[1767676687928,0.1114589,93748.0,93732.0,0.01067]
[1767676688129,0.1114589,93748.0,93734.0,0.01067]
[1767676688318,0.09852117,93748.0,93736.0,0.010669]
[1767676688520,0.09852117,93748.0,93733.0,0.09068]
[1767676688928,0.09852117,93753.0,93738.0,0.010669]
[1767676689635,0.1114589,93753.0,93738.0,0.010669]
[1767676690034,0.09852117,93751.0,93738.0,0.010669]
[1767676690236,0.09852117,93751.0,93733.0,0.078349]
[1767676690942,0.09852117,93751.0,93737.0,0.010669]
[1767676693045,0.1114589,93751.0,93734.0,0.01067]
[1767676694949,0.09852117,93747.0,93734.0,0.01067]
[1767676695450,0.1114589,93747.0,93733.0,0.078349]
[1767676695645,0.010667,93754.0,93733.0,0.078349]
[1767676695646,0.09852117,93745.0,93733.0,0.078349]
[1767676697350,0.09852117,93745.0,93733.0,0.089019]
[1767676697950,0.09852117,93745.0,93733.0,0.080019]
[1767676699355,0.09852117,93745.0,93735.0,0.010669]
[1767676701953,0.09852117,93745.0,93737.0,0.010669]
[1767676705055,0.09852117,93751.0,93739.0,0.010669]
[1767676705257,0.1114589,93751.0,93739.0,0.010669]
[1767676705454,0.101347,93759.0,93739.0,0.010669]
[1767676705455,0.09852117,93749.0,93739.0,0.010669]
[1767676705656,0.09852117,93749.0,93733.0,0.062018]
[1767676706358,0.09852117,93749.0,93736.0,0.010669]
[1767676708763,0.09852117,93747.0,93736.0,0.010669]
[1767676710858,0.09852117,93747.0,93738.0,0.010669]
[1767676711160,0.09377458,93759.0,93745.0,0.010668]
[1767676711463,0.09068,93769.0,93743.0,0.09068]
[1767676713055,0.09068,93769.0,93747.0,0.010668]
[1767676713360,0.09377458,93766.0,93743.0,0.09068]
[1767676713563,0.01288521,93761.0,93743.0,0.09068]
[1767676713759,0.10665979,93760.0,93743.0,0.09068]
[1767676714764,0.10665979,93760.0,93748.0,0.010668]
[1767676714969,0.01288521,93759.0,93748.0,0.010668]
[1767676717058,0.01288521,93759.0,93745.0,0.010668]
[1767676717266,0.01288521,93758.0,93745.0,0.010668]
[1767676721070,0.01288521,93758.0,93743.0,0.15042408]
[1767676721267,0.01288521,93758.0,93745.0,0.010668]
[1767676721474,0.09377458,93759.0,93743.0,0.15042408]
[1767676721972,0.09068,93769.0,93751.0,0.010668]
[1767676723166,0.09068,93769.0,93743.0,0.15042408]
[1767676723371,0.09068,93769.0,93748.0,0.010668]
[1767676723975,0.10665979,93768.0,93748.0,0.010668]
[1767676724168,0.01288521,93765.0,93750.0,0.010668]
[1767676724373,0.09068,93769.0,93750.0,0.010668]
[1767676725372,0.09068,93769.0,93743.0,0.24824699]
[1767676725373,0.101346,93769.0,93747.0,0.010668]
[1767676726363,0.01288521,93765.0,93747.0,0.010668]
[1767676726872,0.01288521,93759.0,93744.0,0.010668]
[1767676728572,0.09068,93769.0,93743.0,0.15042408]
[1767676728573,0.10665979,93758.0,93743.0,0.15042408]
[1767676728777,0.01288521,93754.0,93743.0,0.12642408]
[1767676730180,0.01288521,93759.0,93745.0,0.010668]
[1767676730480,0.01288521,93759.0,93749.0,0.0983569]
[1767676731571,0.01288521,93759.0,93745.0,0.010668]
[1767676731770,0.01288521,93759.0,93749.0,0.0983569]
[1767676732575,0.01288521,93759.0,93745.0,0.010668]
[1767676732784,0.01288521,93759.0,93749.0,0.0983569]
[1767676733480,0.010666,93767.0,93749.0,0.0983569]
[1767676733678,0.01288521,93765.0,93749.0,0.0983569]
[1767676735779,0.01597974,93764.0,93746.0,0.010668]
[1767676735978,0.01597974,93764.0,93750.0,0.0983569]
[1767676736781,0.01597974,93764.0,93750.0,0.0783569]
[1767676738172,0.01597974,93764.0,93750.0,0.0983569]
[1767676742379,0.01444904,93762.0,93750.0,0.0983569]
[1767676744275,0.01444904,93762.0,93750.0,0.0803569]
[1767676746591,0.01444904,93755.0,93732.0,0.11996442]
[1767676746779,0.09337196,93756.0,93732.0,0.11996442]
[1767676746780,0.01444904,93751.0,93735.0,0.09068]
[1767676747882,0.010668,93748.0,93734.0,0.05966831]
[1767676748175,0.02511704,93748.0,93730.0,0.0983569]
[1767676748387,0.02511704,93748.0,93731.0,0.09068]
[1767676748586,0.01444904,93748.0,93731.0,0.09068]
[1767676748891,0.010668,93749.0,93731.0,0.09068]
[1767676749391,0.010668,93749.0,93731.0,0.1957771]
[1767676749687,0.010668,93749.0,93731.0,0.21064442]
[1767676749893,0.01444904,93751.0,93733.0,0.1050971]
[1767676751689,0.010668,93752.0,93733.0,0.11996442]
[1767676752885,0.01444904,93754.0,93733.0,0.10929442]
[1767676753089,0.01444904,93752.0,93733.0,0.0944271]
[1767676753482,0.010668,93748.0,93733.0,0.0944271]
[1767676754482,0.010668,93749.0,93733.0,0.1050971]
[1767676755790,0.010668,93749.0,93733.0,0.11996442]
[1767676755990,0.01444904,93758.0,93738.0,0.10929442]
[1767676756189,0.010667,93753.0,93738.0,0.10929442]
[1767676756393,0.010668,93751.0,93738.0,0.0944271]
[1767676757082,0.010668,93751.0,93738.0,0.0914271]
[1767676762400,0.010667,93754.0,93738.0,0.0914271]
[1767676763694,0.010668,93752.0,93738.0,0.0914271]
[1767676764696,0.010668,93752.0,93738.0,0.0714271]
[1767676765893,0.010667,93758.0,93741.0,0.01486732]
[1767676766198,0.101347,93759.0,93744.0,0.010668]
[1767676766697,0.101347,93759.0,93741.0,0.02553632]
[1767676766994,0.010667,93757.0,93741.0,0.02553632]
[1767676770397,0.09068,93759.0,93744.0,0.0944271]
[1767676770585,0.01444904,93769.0,93751.0,0.02553532]
[1767676770792,0.09068,93774.0,93761.0,0.10929442]
[1767676771696,0.09068,93774.0,93761.0,0.0944271]
[1767676772197,0.09068,93774.0,93759.0,0.10833115]
[1767676772398,0.09068,93774.0,93759.0,0.08433115]
[1767676773996,0.09068,93774.0,93760.0,0.010667]
[1767676774901,0.09068,93774.0,93759.0,0.0979922]
[1767676775498,0.00213268,93779.0,93767.0,0.10833115]
[1767676775900,0.00213268,93779.0,93768.0,0.10833115]
[1767676776101,0.02523217,93787.0,93768.0,0.10833115]
[1767676776300,0.10524817,93786.0,93768.0,0.0946701]
[1767676776604,0.10524817,93786.0,93768.0,0.10833115]
[1767676777100,0.09068,93786.0,93770.0,0.10833115]
[1767676777305,0.09068,93786.0,93774.0,0.01366105]
[1767676777504,0.09068,93786.0,93775.0,0.0946701]
[1767676778902,0.010663,93795.0,93776.0,0.01366105]
[1767676779109,0.09068,93794.0,93780.0,0.0983569]
[1767676780204,0.01456817,93797.0,93780.0,0.0843569]
[1767676780406,0.09068,93796.0,93780.0,0.0843569]
[1767676781006,0.09068,93796.0,93778.0,0.10833115]
[1767676781207,0.10524817,93796.0,93778.0,0.10833115]
[1767676781408,0.10524817,93796.0,93778.0,0.0946701]
[1767676781604,0.01456817,93795.0,93778.0,0.0946701]
[1767676783318,0.01456817,93795.0,93778.0,0.1053351]
[1767676785106,0.01456817,93795.0,93778.0,0.0946701]
[1767676785620,0.09068,93796.0,93778.0,0.0946701]
[1767676787813,0.09068,93796.0,93778.0,0.08433115]
[1767676788616,0.09068,93796.0,93779.0,0.01366105]
[1767676789014,0.09068,93796.0,93777.0,0.010665]
[1767676790711,0.09068,93796.0,93776.0,0.0946701]
[1767676790917,0.00556,93800.0,93783.0,0.10833115]
[1767676791128,0.00556,93800.0,93768.0,0.010666]
[1767676791129,0.00556,93800.0,93786.0,0.10833115]
[1767676791426,0.00556,93800.0,93787.0,0.10833115]
[1767676792124,0.00556,93800.0,93788.0,0.10833115]
[1767676792325,0.09068,93804.0,93790.0,0.01366105]
[1767676792828,0.09068,93804.0,93789.0,0.0946701]
[1767676793425,0.010662,93803.0,93789.0,0.0946701]
[1767676794329,0.09068,93804.0,93790.0,0.10833115]
[1767676794933,0.101342,93804.0,93790.0,0.10833115]
[1767676795631,0.101342,93804.0,93790.0,0.0946701]
[1767676795829,0.010662,93802.0,93790.0,0.0946701]
[1767676796031,0.09068,93804.0,93790.0,0.0946701]
[1767676796233,0.010662,93803.0,93790.0,0.0946701]
[1767676802047,0.09068,93804.0,93791.0,0.010663]
[1767676803339,0.09068,93804.0,93790.0,0.0946701]
[1767676806239,0.101342,93804.0,93790.0,0.0946701]
[1767676807148,0.09068,93804.0,93793.0,0.10535005]
[1767676807436,0.002132,93809.0,93796.0,0.10535005]
[1767676808438,0.010661,93808.0,93793.0,0.010663]
[1767676810044,0.002132,93809.0,93793.0,0.10309892]
[1767676810344,0.002132,93809.0,93793.0,0.1157154]
[1767676810945,0.002132,93809.0,93793.0,0.1050524]
[1767676811145,0.002132,93809.0,93793.0,0.1157154]
[1767676812146,0.002132,93809.0,93795.0,0.010663]
[1767676812543,0.09064,93810.0,93798.0,0.10480795]
[1767676813139,0.09064,93810.0,93800.0,0.10493913]
[1767676813545,0.09064,93810.0,93800.0,0.09243592]
[1767676817547,0.0250605,93819.0,93800.0,0.09243592]
[1767676817853,0.0250605,93819.0,93799.0,0.010662]
[1767676817854,0.09064,93818.0,93807.0,0.10437346]
[1767676818054,0.09064,93820.0,93807.0,0.09243592]
[1767676818745,0.09064,93820.0,93808.0,0.0138783]
[1767676819350,0.010659,93827.0,93808.0,0.0138783]
[1767676820150,0.1050405,93829.0,93810.0,0.010661]
[1767676820356,0.09064,93829.0,93810.0,0.0138783]
[1767676820758,0.09064,93829.0,93811.0,0.11697522]
[1767676820959,0.010659,93828.0,93811.0,0.10631422]
[1767676821454,0.09064,93829.0,93811.0,0.10631422]
[1767676821855,0.09064,93829.0,93812.0,0.10631422]
[1767676822050,0.101299,93829.0,93812.0,0.10631422]
[1767676822255,0.09064,93828.0,93814.0,0.10631422]
[1767676825255,0.010658,93837.0,93820.0,0.09243592]
[1767676825559,0.09277132,93839.0,93822.0,0.10631422]
[1767676825760,0.09277132,93839.0,93822.0,0.09243592]
[1767676825960,0.09277132,93839.0,93824.0,0.10631422]
[1767676826151,0.09277132,93839.0,93825.0,0.10631422]
[1767676826352,0.09277132,93839.0,93825.0,0.09243592]
[1767676826660,0.09277132,93839.0,93826.0,0.010659]
[1767676827248,0.00213132,93839.0,93826.0,0.010659]
[1767676827660,0.00213132,93839.0,93828.0,0.1063098]
[1767676829164,0.00213132,93839.0,93829.0,0.010659]
[1767676829363,0.00213132,93839.0,93830.0,0.10581754]
[1767676829659,0.010657,93849.0,93832.0,0.01338162]
[1767676829865,0.101297,93849.0,93833.0,0.10581754]
[1767676830663,0.09064,93849.0,93833.0,0.10581754]
[1767676834875,0.09064,93849.0,93833.0,0.09243592]
[1767676835069,0.09064,93849.0,93835.0,0.11180021]
[1767676836167,0.09064,93849.0,93835.0,0.09912439]
[1767676836470,0.09064,93849.0,93835.0,0.09312439]
[1767676837574,0.09064,93849.0,93836.0,0.010658]
[1767676838172,0.09064,93849.0,93837.0,0.01286085]
[1767676838670,0.09064,93849.0,93836.0,0.10978239]
[1767676842877,0.09064,93849.0,93836.0,0.09912439]
[1767676843382,0.010656,93850.0,93832.0,0.01222916]
[1767676843887,0.010657,93847.0,93830.0,0.2493192]
[1767676844088,0.010657,93847.0,93830.0,0.2253192]
[1767676844380,0.010657,93845.0,93830.0,0.2253192]
[1767676845271,0.10397071,93842.0,93830.0,8.1e-07]
[1767676845471,0.010658,93834.0,93822.0,0.0906]
[1767676845671,0.010658,93837.0,93822.0,0.0906]
[1767676847480,0.010658,93837.0,93823.0,0.11230028]
[1767676847788,0.010658,93837.0,93824.0,0.01317589]
[1767676848688,0.010658,93837.0,93823.0,0.09912439]
[1767676848889,0.010658,93835.0,93822.0,0.0906]
[1767676849188,0.010658,93836.0,93822.0,0.0906]
[1767676849686,0.20218753,93840.0,93822.0,0.0906]
[1767676850685,0.11143493,93840.0,93822.0,0.0906]
[1767676851189,0.010658,93836.0,93822.0,0.0906]
[1767676851491,0.010658,93834.0,93820.0,0.09912439]
[1767676851682,0.02387611,93838.0,93820.0,0.09912439]
[1767676851882,0.010658,93838.0,93820.0,0.11230028]
[1767676852082,0.010658,93838.0,93821.0,0.01317589]
[1767676852682,0.010658,93838.0,93821.0,0.11230028]
[1767676853194,0.010658,93838.0,93821.0,0.09430028]
[1767676855496,0.010658,93836.0,93821.0,0.09430028]
[1767676858395,0.09821682,93840.0,93801.0,0.09593512]
[1767676858396,0.01425606,93826.0,93801.0,0.09593512]
[1767676858600,0.01425606,93826.0,93794.0,0.010663]
[1767676858601,0.10887682,93820.0,93809.0,0.05890531]
[1767676858892,0.010659,93826.0,93808.0,0.10216201]
[1767676859090,0.010659,93826.0,93811.0,0.09150101]
[1767676859296,0.010659,93823.0,93811.0,0.09150101]
[1767676859896,0.010659,93826.0,93811.0,0.09150101]
[1767676860199,0.010659,93826.0,93811.0,0.07450101]
[1767676860496,0.010659,93824.0,93811.0,0.07450101]
[1767676860698,0.010659,93824.0,93809.0,0.0074517]
[1767676862789,0.010659,93824.0,93809.0,0.09817]
[1767676863493,0.010659,93824.0,93810.0,0.00809142]
[1767676865696,0.010659,93824.0,93809.0,0.0907183]
[1767676868497,0.010659,93824.0,93809.0,0.0817183]
[1767676870298,0.010659,93824.0,93801.0,0.05962646]
[1767676870299,0.0175515,93817.0,93801.0,0.05962646]
[1767676870500,0.0175515,93817.0,93796.0,0.00733173]
[1767676870501,0.09821682,93810.0,93796.0,0.00733173]
[1767676870902,0.09821682,93810.0,93797.0,0.01783251]
[1767676871104,0.0282115,93817.0,93799.0,0.010662]
[1767676871404,0.0906,93819.0,93801.0,0.01783251]
[1767676872095,0.01066,93818.0,93801.0,0.00717051]
[1767676873099,0.0906,93819.0,93802.0,0.010662]
[1767676873406,0.10126,93819.0,93802.0,0.010662]
[1767676873907,0.0906,93819.0,93808.0,0.00905135]
[1767676874214,0.0906,93819.0,93807.0,0.0907183]
[1767676875202,0.010659,93831.0,93814.0,0.09950652]
[1767676875499,0.11116834,93834.0,93814.0,0.09950652]
[1767676876007,0.0282095,93833.0,93815.0,0.01066]
[1767676876204,0.09361684,93834.0,93810.0,0.00863207]
[1767676876205,0.11576832,93830.0,93810.0,0.00863207]
[1767676876403,0.010659,93826.0,93806.0,0.00863207]
[1767676876605,0.010659,93824.0,93806.0,0.00863207]
[1767676877408,0.09821682,93820.0,93806.0,0.00863207]
[1767676878109,0.010659,93824.0,93806.0,0.00863207]
[1767676879215,0.010659,93824.0,93806.0,0.01929307]
[1767676880113,0.010659,93824.0,93808.0,0.010661]
[1767676883916,0.010659,93824.0,93806.0,0.00029307]
[1767676884414,0.010659,93824.0,93808.0,0.010661]
[1767676891621,0.010659,93824.0,93805.0,0.17731237]
[1767676892125,0.010659,93824.0,93808.0,0.010661]
[1767676894023,0.0175515,93825.0,93808.0,0.010661]
[1767676894420,0.010659,93827.0,93808.0,0.010661]
[1767676894626,0.02698251,93827.0,93808.0,0.010661]
[1767676896128,0.02698251,93827.0,93810.0,0.010661]
[1767676897725,0.10887582,93830.0,93812.0,0.10090244]
[1767676898730,0.09821682,93830.0,93813.0,0.01066]
[1767676899328,0.09821682,93830.0,93812.0,0.09024144]
[1767676900028,0.010658,93834.0,93815.0,0.01066]
[1767676900329,0.09821682,93830.0,93815.0,0.10090144]
[1767676901629,0.01632351,93834.0,93815.0,0.10090144]
[1767676901828,0.010658,93833.0,93815.0,0.10090144]
[1767676902629,0.01632351,93832.0,93815.0,0.10090144]
[1767676904932,0.09821682,93830.0,93815.0,0.10090144]
[1767676906131,0.010658,93833.0,93812.0,0.09064]
[1767676906132,0.01632351,93824.0,93812.0,0.09064]
[1767676906435,0.01632351,93816.0,93796.0,0.010662]
[1767676906639,0.09821682,93810.0,93793.0,0.05957214]
[1767676906823,0.11454033,93810.0,93797.0,0.09064]
[1767676907519,0.09821682,93810.0,93797.0,0.09064]
[1767676907920,0.01632351,93814.0,93797.0,0.09064]
[1767676909337,0.01632351,93814.0,93797.0,0.101302]
[1767676909639,0.0930864,93816.0,93797.0,0.101302]
[1767676913536,0.0930864,93816.0,93797.0,0.010662]
[1767676913838,0.0930864,93816.0,93798.0,0.09064]
[1767676914738,0.10940991,93816.0,93798.0,0.05364]
[1767676915137,0.12006991,93816.0,93798.0,0.05364]
[1767676915632,0.12006991,93816.0,93799.0,0.010662]
[1767676915834,0.10940991,93816.0,93801.0,0.010662]
[1767676917741,0.01568251,93820.0,93804.0,0.010662]
[1767676918040,0.11698151,93825.0,93805.0,0.09920317]
[1767676918234,0.11698151,93825.0,93806.0,0.010661]
[1767676918428,0.01568251,93824.0,93806.0,0.010661]
[1767676918939,0.01568251,93823.0,93806.0,0.010661]
[1767676920136,0.01568251,93822.0,93806.0,0.010661]
[1767676920347,0.01066,93819.0,93800.0,0.10986517]
[1767676920531,0.01568251,93818.0,93802.0,0.010662]
[1767676921441,0.02684051,93817.0,93800.0,0.010662]
[1767676921641,0.01618051,93816.0,93800.0,0.010662]
[1767676922343,0.01618051,93816.0,93801.0,0.010662]
[1767676922545,0.01618051,93816.0,93798.0,0.051302]
[1767676923230,0.0952635,93820.0,93805.0,0.010661]
[1767676923446,0.1059235,93820.0,93802.0,0.010662]
[1767676924340,0.12210401,93820.0,93802.0,0.010662]
[1767676925339,0.01618051,93819.0,93802.0,0.010662]
[1767676928340,0.01618051,93819.0,93804.0,0.010662]
[1767676928531,0.01618051,93819.0,93806.0,0.010661]
[1767676929138,0.01066,93823.0,93806.0,0.010661]
[1767676929444,0.01618051,93829.0,93810.0,0.010661]
[1767676929657,0.01618051,93829.0,93812.0,0.010661]
[1767676930129,0.01618051,93829.0,93812.0,0.005661]
[1767676930538,0.01618051,93828.0,93812.0,0.005661]
[1767676930738,0.01618051,93818.0,93799.0,0.09064]
[1767676930937,0.01618051,93818.0,93800.0,0.010662]
[1767676932443,0.01066,93817.0,93799.0,0.09064]
[1767676932643,0.01618051,93816.0,93799.0,0.101302]
[1767676933737,0.01066,93817.0,93799.0,0.101302]
[1767676934245,0.11286085,93819.0,93799.0,0.101302]
[1767676935644,0.11286085,93819.0,93801.0,0.010662]
[1767676937346,0.01618051,93816.0,93799.0,0.09064]
[1767676937547,0.11286085,93816.0,93799.0,0.09064]
[1767676937951,0.11286085,93816.0,93799.0,0.06864]
[1767676938139,0.12352085,93816.0,93799.0,0.06864]
[1767676939343,0.12352085,93816.0,93800.0,0.010662]
[1767676940546,0.12352085,93816.0,93799.0,0.06864]
[1767676940746,0.01618051,93815.0,93799.0,0.06864]
[1767676941049,0.01618051,93813.0,93797.0,0.010662]
[1767676941251,0.01618051,93813.0,93798.0,0.09064]
[1767676941946,0.01618051,93808.0,93791.0,0.010663]
[1767676942149,0.01618051,93806.0,93793.0,0.010663]
[1767676942451,0.01618051,93806.0,93793.0,0.09064]
[1767676943439,0.09668034,93807.0,93793.0,0.09064]
[1767676945745,0.09668034,93807.0,93793.0,0.08164]
[1767676947253,0.02684151,93809.0,93790.0,7.948e-05]
[1767676947254,0.11286085,93806.0,93790.0,7.948e-05]
[1767676947453,0.1013,93819.0,93779.0,0.09770345]
[1767676947454,0.01618051,93798.0,93785.0,0.09064]
[1767676947655,0.01618051,93798.0,93785.0,0.101304]
[1767676948443,8.457e-05,93797.0,93785.0,0.101304]
[1767676949357,0.01626508,93797.0,93783.0,0.08450997]
[1767676949549,0.01626508,93797.0,93784.0,0.09064]
[1767676949749,8.457e-05,93797.0,93784.0,0.09064]
[1767676950252,8.457e-05,93797.0,93784.0,0.101304]
[1767676953470,8.457e-05,93797.0,93784.0,0.087304]
[1767676954964,8.457e-05,93797.0,93786.0,0.010664]
[1767676955762,8.457e-05,93797.0,93785.0,0.010664]
[1767676956564,8.457e-05,93797.0,93784.0,0.1713274]
[1767676956761,8.457e-05,93797.0,93784.0,0.1819914]
[1767676959465,8.457e-05,93797.0,93784.0,0.1053514]
[1767676959764,8.457e-05,93797.0,93784.0,0.1959914]
[1767676961266,8.457e-05,93797.0,93784.0,0.1729914]
[1767676961461,8.457e-05,93797.0,93784.0,0.101304]
[1767676961667,8.457e-05,93797.0,93784.0,0.09064]
[1767676962468,8.457e-05,93797.0,93779.0,0.05999161]
[1767676962659,0.010664,93780.0,93769.0,0.09064]
[1767676963061,0.010664,93783.0,93769.0,0.09064]
[1767676963667,0.010664,93781.0,93769.0,0.09064]
[1767676963862,0.010665,93775.0,93758.0,0.364]
[1767676964176,0.010665,93773.0,93758.0,0.09064]
[1767676964572,0.010665,93773.0,93756.0,0.1053544]
[1767676965071,0.014692,93774.0,93756.0,0.1053544]
[1767676966168,0.014692,93774.0,93756.0,0.0946874]
[1767676966371,0.09208292,93778.0,93756.0,0.0946874]
[1767676966372,0.10677492,93778.0,93758.0,0.010667]
[1767676966767,0.010665,93777.0,93758.0,0.010667]
[1767676967776,0.010665,93775.0,93756.0,0.0946874]
[1767676968875,0.010665,93775.0,93756.0,0.0796874]
[1767676969875,0.010665,93775.0,93757.0,0.010667]
[1767676970180,0.010665,93776.0,93756.0,0.0796874]
[1767676970475,0.025357,93776.0,93757.0,0.010667]
[1767676970872,0.010665,93774.0,93757.0,0.010667]
[1767676971865,0.010665,93774.0,93756.0,0.0796874]
[1767676972064,0.014692,93776.0,93756.0,0.0796874]
[1767676972065,0.010665,93771.0,93756.0,0.0796874]
[1767676972276,7.623e-05,93770.0,93756.0,0.0796874]
[1767676972777,7.623e-05,93770.0,93760.0,0.09834853]
[1767676972977,7.623e-05,93770.0,93763.0,0.010666]
[1767676973179,0.09208292,93778.0,93763.0,0.010666]
[1767676974980,0.09208292,93778.0,93760.0,0.10901553]
[1767676975477,0.09208292,93778.0,93762.0,0.010666]
[1767676976580,0.09208292,93778.0,93756.0,0.0796874]
[1767676976774,0.010661,93807.0,93752.0,0.05954412]
[1767676976775,0.01366618,93786.0,93761.0,0.09327351]
[1767676976977,0.010664,93786.0,93769.0,0.09327351]
[1767676977276,0.101344,93786.0,93769.0,0.09327351]
[1767676977578,0.01366618,93785.0,93770.0,0.09834853]
[1767676978180,0.01366618,93785.0,93768.0,0.010666]
[1767676980583,0.01366618,93785.0,93770.0,0.09834853]
[1767676980787,0.01366618,93785.0,93761.0,0.09068]
[1767676980788,0.010662,93799.0,93775.0,0.09834853]
[1767676980973,0.09068,93801.0,93789.0,0.09834853]
[1767676981675,0.010662,93800.0,93780.0,0.1919452]
[1767676981880,0.010662,93800.0,93780.0,0.2026092]
[1767676981881,0.02482303,93800.0,93780.0,0.2026092]
[1767676982775,0.09068,93801.0,93790.0,0.09834853]
[1767676982979,0.01066,93823.0,93790.0,0.09834853]
[1767676982980,0.010661,93810.0,93792.0,0.010663]
[1767676983284,0.010661,93810.0,93799.0,0.09834853]
[1767676983883,0.010661,93808.0,93792.0,0.10425967]
[1767676984266,0.010661,93808.0,93792.0,0.08825967]
[1767676984466,0.010661,93806.0,93792.0,0.08825967]
[1767676984672,0.010661,93806.0,93790.0,0.09834853]
[1767676985877,0.010661,93806.0,93791.0,0.010663]
[1767676986669,0.010662,93804.0,93788.0,0.010663]
[1767676986874,0.09643862,93808.0,93788.0,0.010663]
[1767676986875,0.010661,93807.0,93790.0,0.09834853]
[1767676987286,0.010662,93804.0,93790.0,0.09834853]
[1767676987581,0.010662,93804.0,93788.0,0.010663]
[1767676988080,0.010662,93804.0,93790.0,0.09834853]
[1767676988683,0.010661,93807.0,93790.0,0.09834853]
[1767676990481,0.010662,93805.0,93788.0,0.010663]
[1767676990688,0.010662,93805.0,93790.0,0.09834853]
[1767676991988,0.010662,93805.0,93790.0,0.08034853]
[1767676993188,0.010661,93808.0,93791.0,0.010663]
[1767676994188,0.002132,93809.0,93796.0,0.010662]
[1767676994390,0.002132,93809.0,93796.0,0.10425867]
[1767676995383,0.09068,93813.0,93800.0,0.10425867]
[1767676995588,0.01066,93815.0,93800.0,0.09359667]
[1767676997294,0.01066,93815.0,93801.0,0.010662]
[1767676997790,0.1996,93820.0,93806.0,0.09359667]
[1767676998188,0.1996,93820.0,93810.0,0.09834853]
[1767676998391,0.01066,93819.0,93810.0,0.09834853]
[1767676998582,0.01066,93819.0,93806.0,0.09359667]
[1767676998788,0.09064,93821.0,93806.0,0.10425767]
[1767676999186,0.09064,93826.0,93811.0,0.010661]
[1767676999387,0.09064,93826.0,93810.0,0.09834853]
[1767676999388,0.09064,93826.0,93813.0,0.01066]
[1767676999799,0.09064,93826.0,93810.0,0.10900953]
[1767677000099,0.09064,93826.0,93810.0,0.010661]
[1767677000292,0.09064,93826.0,93813.0,0.010661]
[1767677000899,0.101298,93833.0,93816.0,0.2026052]
[1767677001082,0.101298,93833.0,93820.0,0.09834853]
[1767677001288,0.010659,93831.0,93820.0,0.09834853]
[1767677002399,0.010659,93831.0,93816.0,0.09359667]
[1767677002892,0.09064,93833.0,93817.0,0.01066]
[1767677003097,0.09064,93833.0,93820.0,0.09834853]
[1767677003596,0.09064,93833.0,93819.0,0.01066]
[1767677003800,0.010658,93832.0,93820.0,0.09834853]
[1767677004494,0.09064,93833.0,93816.0,0.09359667]
[1767677004798,0.10480103,93833.0,93813.0,0.010661]
[1767677006397,0.010659,93828.0,93813.0,0.010661]
[1767677007894,0.010659,93828.0,93810.0,0.1706062]
[1767677008099,0.010659,93831.0,93815.0,0.01066]
[1767677008900,0.010659,93831.0,93812.0,0.010661]
[1767677009099,0.10480103,93833.0,93812.0,0.010661]
[1767677009100,0.010659,93829.0,93812.0,0.010661]
[1767677011604,0.010659,93829.0,93814.0,0.01066]
[1767677012610,0.010659,93829.0,93811.0,0.10425767]
[1767677013013,0.010659,93829.0,93813.0,0.010661]
[1767677015313,0.010659,93829.0,93815.0,0.01066]
[1767677015516,0.010659,93829.0,93811.0,0.08525667]
[1767677015912,0.010659,93830.0,93815.0,0.01066]
[1767677020418,0.01510109,93832.0,93815.0,0.01066]
[1767677020814,0.010659,93831.0,93815.0,0.01066]
[1767677022111,0.010659,93829.0,93815.0,0.01066]
[1767677022317,0.010659,93829.0,93812.0,0.010661]
[1767677023017,0.010659,93827.0,93812.0,0.010661]
[1767677023217,0.010659,93827.0,93811.0,0.07591767]
[1767677023820,0.010659,93830.0,93814.0,0.01066]
[1767677025318,0.010659,93828.0,93814.0,0.01066]
[1767677025514,0.010659,93828.0,93813.0,0.010661]
[1767677027313,0.010659,93831.0,93813.0,0.010661]
[1767677027512,0.010659,93831.0,93815.0,0.01066]
[1767677027914,0.09834853,93830.0,93815.0,0.01066]
[1767677028118,0.02576009,93831.0,93815.0,0.01066]
[1767677029415,0.18810264,93833.0,93813.0,0.010661]
[1767677029610,0.18810264,93833.0,93813.0,0.0908222]
[1767677030020,0.18810264,93833.0,93815.0,0.01066]
[1767677030223,0.18810264,93833.0,93820.0,0.09834853]
[1767677030421,0.09064,93833.0,93820.0,0.09834853]
[1767677030926,0.09064,93833.0,93820.0,0.07534853]
[1767677031120,0.00213132,93839.0,93823.0,0.09834853]
[1767677031425,0.00213132,93839.0,93824.0,0.010659]
[1767677031725,0.00213132,93839.0,93821.0,0.01066]
[1767677032322,0.01510109,93837.0,93820.0,0.09834853]
[1767677032522,0.01510109,93837.0,93818.0,0.01066]
[1767677032723,0.01510109,93837.0,93820.0,0.01066]
[1767677032925,0.09746264,93838.0,93820.0,0.01066]
[1767677034026,0.09746264,93838.0,93822.0,0.010659]
[1767677034726,0.01510109,93837.0,93819.0,0.01066]
[1767677035128,0.01510109,93837.0,93821.0,0.01066]
[1767677035327,0.09746264,93838.0,93821.0,0.01066]
[1767677035529,0.11175507,93838.0,93821.0,0.01066]
[1767677035727,0.01429243,93836.0,93821.0,0.01066]
[1767677037025,0.09439109,93837.0,93821.0,0.01066]
[1767677037636,0.09439109,93837.0,93823.0,0.010659]
[1767677038331,0.00213132,93839.0,93825.0,0.010659]
[1767677038833,0.00213132,93839.0,93817.0,0.0908222]
[1767677039435,0.00213132,93839.0,93824.0,0.010659]
[1767677039637,0.01642375,93839.0,93824.0,0.010659]
[1767677040434,0.00213132,93839.0,93827.0,0.010659]
[1767677041739,0.00213132,93839.0,93824.0,0.010659]
[1767677041929,0.00213132,93839.0,93816.0,0.09064]
[1767677041930,0.00213132,93839.0,93826.0,0.010659]
[1767677043737,0.010657,93846.0,93825.0,0.00595112]
[1767677044135,0.010657,93846.0,93828.0,0.01648177]
[1767677044734,0.10990654,93836.0,93817.0,0.01066]
[1767677044934,0.09924854,93836.0,93817.0,0.01066]
[1767677045130,0.09924854,93836.0,93817.0,0.01683958]
[1767677046339,0.09924854,93836.0,93817.0,0.00183958]
[1767677046541,0.09924854,93836.0,93816.0,0.27248257]
[1767677046730,0.09924854,93836.0,93819.0,0.01066]
[1767677047039,0.010658,93837.0,93819.0,0.01066]